fUST/lending_fUST_20250809
["ID","MTS","AMOUNT","RATE_DAILY","PERIOD"]
[378115983,1754737840801,-460.0,0.00022191,2]
[378115984,1754737840810,-460.0,0.00022191,2]
[378115985,1754737840820,-460.0,0.00022191,2]
[378115986,1754737840829,-1067.59,0.00022191,2]
[378115987,1754737840839,-507.94,0.00022191,2]
[378115988,1754737840849,-460.0,0.00022191,2]
[378115989,1754737840858,-714.05,0.00022191,2]
[378115990,1754737840868,-208.4652141,0.00022191,2]
[378115991,1754737840877,-460.0,0.00022191,2]
[378115992,1754737840887,-460.0,0.00022191,2]
[378115993,1754737840896,-460.0,0.00022191,2]
[378115994,1754737840905,-460.0,0.00022191,2]
[378115995,1754737840915,-460.0,0.00022191,2]
[378115996,1754737840924,-460.0,0.00022191,2]
[378115997,1754737840934,-459.39197493,0.00022191,2]
[378115998,1754737840943,-460.0,0.00022191,2]
[378115999,1754737840953,-460.0,0.00022191,2]
[378116000,1754737840963,-460.0,0.00022191,2]
[378116001,1754737840972,-517.36,0.00022191,2]
[378116002,1754737840982,-460.0,0.00022191,2]
[378116003,1754737840991,-460.0,0.00022191,2]
[378116004,1754737841001,-460.0,0.00022191,2]
[378116005,1754737841010,-3130.02,0.00022191,2]
[378116006,1754737841019,-460.0,0.00022191,2]
[378116007,1754737841029,-460.0,0.00022191,2]
[378116008,1754737841039,-507.25,0.00022191,2]
[378116009,1754737841048,-628.17,0.00022191,2]
[378116010,1754737841058,-460.0,0.00022191,2]
[378116011,1754737841068,-220.91676957,0.00022191,2]
[378116012,1754737841079,-2497.81,0.00022191,2]
[378116013,1754737841090,-460.0,0.00022191,2]
[378116014,1754737841099,-2601.92,0.00022191,2]
[378116015,1754737841109,-460.0,0.00022191,2]
[378116016,1754737841118,-460.0,0.00022191,2]
[378116017,1754737841127,-4866.74,0.00022191,2]
[378116018,1754737841136,-460.0,0.00022191,2]
[378116019,1754737841146,-460.0,0.00022191,2]
[378116020,1754737841155,-463.8381926,0.00022191,2]
[378116021,1754737841165,-460.0,0.00022191,2]
[378116022,1754737841175,-460.0,0.00022191,2]
[378116023,1754737841184,-709.84,0.00022191,2]
[378116024,1754737841194,-460.0,0.00022191,2]
[378116025,1754737841203,-460.0,0.00022191,2]
[378116026,1754737841213,-868.44,0.00022191,2]
[378116027,1754737841222,-1531.27,0.00022191,2]
[378116028,1754737841232,-460.0,0.00022191,2]
[378116029,1754737841241,-460.0,0.00022191,2]
[378116030,1754737841251,-460.0,0.00022191,2]
[378116031,1754737841260,-460.0,0.00022191,2]
[378116032,1754737841270,-514.62,0.00022191,2]
[378116033,1754737841279,-598.82827902,0.00022191,2]
[378116034,1754737841289,-460.0,0.00022191,2]
[378116035,1754737841298,-460.0,0.00022191,2]
[378116036,1754737841307,-460.0,0.00022191,2]
[378116037,1754737841317,-471.67561121,0.00022191,2]
[378116038,1754737841328,-460.0,0.00022191,2]
[378116039,1754737841338,-1356.23,0.00022191,2]
[378116040,1754737841347,-460.0,0.00022191,2]
[378116041,1754737841469,-330.13153364,0.00022191,2]
[378116042,1754737841479,-460.0,0.00022191,2]
[378116043,1754737841489,-589.33,0.00022191,2]
[378116044,1754737841499,-460.0,0.00022191,2]
[378116045,1754737841509,-460.0,0.00022191,2]
[378116046,1754737841518,-1177.32,0.00022191,2]
[378116047,1754737841527,-617.98,0.00022191,2]
[378116048,1754737841538,-465.22588452,0.00022191,2]
[378116049,1754737841548,-460.0,0.00022191,2]
[378116050,1754737841557,-460.0,0.00022191,2]
[378116051,1754737841567,-460.0,0.00022191,2]
[378116052,1754737841576,-460.0,0.00022191,2]
[378116053,1754737841586,-460.0,0.00022191,2]
[378116054,1754737841598,-277.89146572,0.00022191,2]
[378116055,1754737841607,-460.0,0.00022191,2]
[378116056,1754737841617,-460.0,0.00022191,2]
[378116057,1754737841626,-748.1,0.00022191,2]
[378116058,1754737841636,-460.0,0.00022191,2]
[378116059,1754737841646,-460.0,0.00022191,2]
[378116060,1754737841658,-460.0,0.00022191,2]
[378116061,1754737841668,-460.0,0.00022191,2]
[378116062,1754737841679,-460.0,0.00022191,2]
[378116063,1754737841689,-611.02,0.00022191,2]
[378116064,1754737841699,-534.30869481,0.00022191,2]
[378116065,1754737841708,-539.32,0.00022191,2]
[378116066,1754737841718,-460.0,0.00022191,2]
[378116067,1754737841727,-907.86,0.00022191,2]
[378116068,1754737841738,-460.0,0.00022191,2]
[378116069,1754737841747,-460.0,0.00022191,2]
[378116070,1754737841757,-460.0,0.00022191,2]
[378116071,1754737841766,-460.0,0.00022191,2]
[378116072,1754737841776,-460.0,0.00022191,2]
[378116073,1754737841785,-460.0,0.00022191,2]
[378116074,1754737841795,-1426.0,0.00022191,2]
[378116075,1754737841804,-460.0,0.00022191,2]
[378116076,1754737841813,-1460.77,0.00022191,2]
[378116077,1754737841824,-460.0,0.00022191,2]
[378116078,1754737841833,-460.0,0.00022191,2]
[378116079,1754737841843,-484.91146015,0.00022191,2]
[378116080,1754737841852,-900.14,0.00022191,2]
[378116081,1754737841862,-460.0,0.00022191,2]
[378116082,1754737841871,-466.54364022,0.00022191,2]
[378116083,1754737841880,-1833.65,0.00022191,2]
[378116084,1754737841890,-460.0,0.00022191,2]
[378116085,1754737841899,-460.0,0.00022191,2]
[378116086,1754737841910,-460.0,0.00022191,2]
[378116087,1754737841919,-460.0,0.00022191,2]
[378116088,1754737841928,-460.78,0.00022191,2]
[378116089,1754737841937,-460.0,0.00022191,2]
[378116090,1754737841947,-754.73,0.00022191,2]
[378116091,1754737841956,-1593.67,0.00022191,2]
[378116092,1754737841965,-460.0,0.00022191,2]
[378116093,1754737841975,-1276.56,0.00022191,2]
[378116094,1754737841984,-460.0,0.00022191,2]
[378116095,1754737841994,-460.0,0.00022191,2]
[378116096,1754737842003,-464.86432493,0.00022191,2]
[378116097,1754737842012,-463.89803972,0.00022191,2]
[378116098,1754737842021,-460.0,0.00022191,2]
[378116099,1754737842031,-263.159035,0.00022191,7]
[378116100,1754737842040,-460.0,0.00022191,2]
[378116101,1754737842049,-460.0,0.00022191,2]
[378116102,1754737842059,-460.0,0.00022191,2]
[378116103,1754737842071,-460.0,0.00022191,2]
[378116104,1754737842082,-263.159035,0.00022191,7]
[378116105,1754737842091,-460.0,0.00022191,2]
[378116106,1754737842102,-460.0,0.00022191,2]
[378116107,1754737842111,-553.13,0.00022191,2]
[378116108,1754737842120,-842.95011917,0.00022215,2]
[378116109,1754737842130,-160.0,0.00022216,2]
[378116110,1754737842139,-160.0,0.00022216,2]
[378116111,1754737842148,-12666.14847857,0.00022216,2]
[378116112,1754737842158,-312.16666667,0.00022216,2]
[378116113,1754737842167,-215.40758176,0.00022216,2]
[378116114,1754737842176,-231.92402426,0.00022216,2]
[378116115,1754737842185,-160.0,0.00022216,2]
[378116116,1754737842195,-160.0,0.00022216,2]
[378116117,1754737842204,-216.61183532,0.00022216,2]
[378116118,1754737842213,-160.0,0.00022216,2]
[378116119,1754737842222,-160.0,0.00022216,2]
[378116120,1754737842232,-160.0,0.00022219,2]
[378116121,1754737842241,-160.0,0.00022222,2]
[378116122,1754737842250,-461.55179734,0.00022222,2]
[378116123,1754737842260,-151.0,0.00022241,7]
[378116124,1754737842270,-151.0,0.00022241,7]
[378116125,1754737842279,-151.0,0.00022241,7]
[378116126,1754737842289,-151.0,0.00022241,7]
[378116127,1754737842298,-187.308952,0.00022241,7]
[378116128,1754737842307,-187.308952,0.00022241,7]
[378116129,1754737842317,-151.0,0.00022241,7]
[378116130,1754737842326,-259.414525,0.00022241,7]
[378116131,1754737842337,-151.0,0.00022241,7]
[378116132,1754737842346,-151.0,0.00022241,7]
[378116133,1754737842356,-151.0,0.00022241,7]
[378116134,1754737842366,-151.0,0.000223,10]
[378116135,1754737842375,-1000.0,0.00022321,2]
[378116136,1754737842385,-500.0,0.00022321,2]
[378116137,1754737842395,-500.0,0.00022321,2]
[378116138,1754737842405,-500.0,0.00022321,2]
[378116139,1754737842415,-1000.0,0.00022321,2]
[378116140,1754737842425,-527.21694621,0.00022321,2]
[378116141,1754737842435,-1000.0,0.00022321,2]
[378116142,1754737842444,-500.0,0.00022321,2]
[378116143,1754737842455,-1000.0,0.00022321,2]
[378116144,1754737842465,-1000.0,0.00022321,2]
[378116145,1754737842474,-1000.0,0.00022321,2]
[378116146,1754737842484,-151.0,0.000224,7]
[378116147,1754737842493,-151.0,0.00022465,7]
[378116148,1754737842504,-460.0,0.00022465,2]
[378116149,1754737842514,-460.0,0.00022465,2]
[378116150,1754737842525,-460.0,0.00022465,2]
[378116151,1754737842534,-473.56707233,0.00022465,2]
[378116152,1754737842544,-460.0,0.00022465,2]
[378116153,1754737842554,-460.0,0.00022465,2]
[378116154,1754737842564,-553.79,0.00022465,2]
[378116155,1754737842573,-460.0,0.00022465,2]
[378116156,1754737842583,-460.0,0.00022465,2]
[378116157,1754737842594,-966.14,0.00022465,2]
[378116158,1754737842606,-460.0,0.00022465,2]
[378116160,1754737842616,-348.35971162,0.00022465,2]
[378116161,1754737842625,-826.92,0.00022465,2]
[378116162,1754737842635,-460.0,0.00022465,2]
[378116163,1754737842645,-460.0,0.00022465,2]
[378116164,1754737842654,-405.657,0.00022465,2]
[378116165,1754737842663,-460.0,0.00022465,2]
[378116166,1754737842676,-508.5197744,0.00022465,2]
[378116167,1754737842686,-532.07921807,0.00022465,2]
[378116168,1754737842695,-543.6,0.00022465,2]
[378116169,1754737842705,-575.63,0.00022465,2]
[378116170,1754737842714,-460.0,0.00022465,2]
[378116171,1754737842725,-460.0,0.00022465,2]
[378116172,1754737842735,-606.27,0.00022465,2]
[378116173,1754737842744,-460.0,0.00022465,2]
[378116175,1754737842753,-717.66,0.00022465,2]
[378116176,1754737842763,-460.0,0.00022465,2]
[378116177,1754737842773,-460.0,0.00022465,2]
[378116178,1754737842782,-577.05,0.00022465,2]
[378116179,1754737842791,-460.0,0.00022465,2]
[378116180,1754737842800,-460.0,0.00022465,2]
[378116181,1754737842810,-460.0,0.00022465,2]
[378116182,1754737842819,-460.0,0.00022465,2]
[378116183,1754737842830,-460.0,0.00022465,2]
[378116184,1754737842839,-460.0,0.00022465,2]
[378116185,1754737842848,-460.0,0.00022465,2]
[378116186,1754737842858,-827.44,0.00022465,2]
[378116187,1754737842867,-460.0,0.00022465,2]
[378116188,1754737842876,-460.0,0.00022465,2]
[378116189,1754737842885,-460.0,0.00022465,2]
[378116190,1754737842894,-460.0,0.00022465,2]
[378116191,1754737842904,-460.0,0.00022465,2]
[378116192,1754737842913,-460.0,0.00022465,2]
[378116193,1754737842923,-460.0,0.00022465,2]
[378116194,1754737842933,-721.3,0.00022465,2]
[378116195,1754737842943,-460.0,0.00022465,2]
[378116196,1754737842953,-460.0,0.00022465,2]
[378116197,1754737842962,-1134.05,0.00022465,2]
[378116198,1754737842971,-871.0,0.00022465,2]
[378116199,1754737842981,-460.0,0.00022465,2]
[378116201,1754737842991,-1233.03,0.00022465,2]
[378116202,1754737843000,-460.0,0.00022465,2]
[378116203,1754737843010,-550.56,0.00022465,2]
[378116204,1754737843020,-460.0,0.00022465,2]
[378116205,1754737843031,-901.87,0.00022465,2]
[378116207,1754737843040,-460.0,0.00022465,2]
[378116209,1754737843049,-2923.86,0.00022465,2]
[378116210,1754737843059,-460.0,0.00022465,2]
[378116211,1754737843068,-460.0,0.00022465,2]
[378116212,1754737843078,-678.0,0.00022465,2]
[378116213,1754737843088,-460.0,0.00022465,2]
[378116215,1754737843097,-1048.07,0.00022465,2]
[378116216,1754737843106,-460.0,0.00022465,2]
[378116217,1754737843116,-460.0,0.00022465,2]
[378116218,1754737843125,-460.0,0.00022465,2]
[378116219,1754737843134,-460.0,0.00022465,2]
[378116220,1754737843143,-1067.59,0.00022465,2]
[378116221,1754737843153,-507.94,0.00022465,2]
[378116222,1754737843162,-714.05,0.00022465,2]
[378116223,1754737843171,-460.0,0.00022465,2]
[378116224,1754737843181,-460.0,0.00022465,2]
[378116225,1754737843190,-460.0,0.00022465,2]
[378116226,1754737843199,-462.55505221,0.00022465,2]
[378116227,1754737843209,-517.36,0.00022465,2]
[378116228,1754737843218,-460.0,0.00022465,2]
[378116230,1754737843227,-460.0,0.00022465,2]
[378116232,1754737843236,-460.0,0.00022465,2]
[378116233,1754737843245,-3130.02,0.00022465,2]
[378116235,1754737843255,-460.0,0.00022465,2]
[378116237,1754737843264,-460.0,0.00022465,2]
[378116238,1754737843273,-507.25,0.00022465,2]
[378116240,1754737843283,-628.17,0.00022465,2]
[378116242,1754737843293,-2497.81,0.00022465,2]
[378116243,1754737843302,-460.0,0.00022465,2]
[378116244,1754737843312,-2601.92,0.00022465,2]
[378116245,1754737843322,-4866.74,0.00022465,2]
[378116246,1754737843332,-460.0,0.00022465,2]
[378116247,1754737843341,-460.0,0.00022465,2]
[378116248,1754737843351,-460.0,0.00022465,2]
[378116249,1754737843361,-709.84,0.00022465,2]
[378116250,1754737843371,-460.0,0.00022465,2]
[378116251,1754737843380,-460.0,0.00022465,2]
[378116252,1754737843390,-868.44,0.00022465,2]
[378116253,1754737843399,-1531.27,0.00022465,2]
[378116254,1754737843408,-460.0,0.00022465,2]
[378116255,1754737843417,-460.0,0.00022465,2]
[378116256,1754737843427,-460.0,0.00022465,2]
[378116257,1754737843436,-514.62,0.00022465,2]
[378116258,1754737843445,-460.0,0.00022465,2]
[378116259,1754737843455,-460.0,0.00022465,2]
[378116260,1754737843464,-1356.23,0.00022465,2]
[378116261,1754737843474,-460.0,0.00022465,2]
[378116262,1754737843483,-589.33,0.00022465,2]
[378116263,1754737843492,-460.0,0.00022465,2]
[378116264,1754737843502,-1177.32,0.00022465,2]
[378116265,1754737843511,-617.98,0.00022465,2]
[378116266,1754737843520,-460.0,0.00022465,2]
[378116267,1754737843529,-460.0,0.00022465,2]
[378116268,1754737843539,-460.0,0.00022465,2]
[378116269,1754737843548,-460.0,0.00022465,2]
[378116270,1754737843557,-460.0,0.00022465,2]
[378116271,1754737843567,-748.1,0.00022465,2]
[378116272,1754737843576,-460.0,0.00022465,2]
[378116273,1754737843586,-460.0,0.00022465,2]
[378116274,1754737843596,-460.0,0.00022465,2]
[378116275,1754737843607,-611.02,0.00022465,2]
[378116276,1754737843634,-539.32,0.00022465,2]
[378116277,1754737843643,-907.86,0.00022465,2]
[378116278,1754737843652,-460.0,0.00022465,2]
[378116279,1754737843662,-460.0,0.00022465,2]
[378116280,1754737843672,-460.0,0.00022465,2]
[378116281,1754737843681,-460.0,0.00022465,2]
[378116282,1754737843691,-460.0,0.00022465,2]
[378116283,1754737843701,-1426.0,0.00022465,2]
[378116284,1754737843710,-460.0,0.00022465,2]
[378116285,1754737843719,-1460.77,0.00022465,2]
[378116286,1754737843729,-900.14,0.00022465,2]
[378116287,1754737843837,-460.0,0.00022465,2]
[378116288,1754737843847,-1833.65,0.00022465,2]
[378116289,1754737843856,-460.0,0.00022465,2]
[378116290,1754737843865,-460.0,0.00022465,2]
[378116291,1754737843875,-460.78,0.00022465,2]
[378116292,1754737843884,-754.73,0.00022465,2]
[378116293,1754737843894,-1593.67,0.00022465,2]
[378116294,1754737843904,-460.0,0.00022465,2]
[378116295,1754737843915,-1276.56,0.00022465,2]
[378116296,1754737843926,-460.0,0.00022465,2]
[378116297,1754737843935,-460.0,0.00022465,2]
[378116298,1754737843944,-460.0,0.00022465,2]
[378116299,1754737843954,-263.159035,0.00022465,7]
[378116300,1754737843964,-460.0,0.00022465,2]
[378116301,1754737843973,-460.0,0.00022465,2]
[378116302,1754737843982,-460.0,0.00022465,2]
[378116303,1754737843992,-460.0,0.00022465,2]
[378116304,1754737844001,-263.159035,0.00022465,7]
[378116305,1754737844011,-460.0,0.00022465,2]
[378116306,1754737844020,-460.0,0.00022465,2]
[378116307,1754737844029,-553.13,0.00022465,2]
[378116308,1754737844038,-500.0,0.00022473,2]
[378116309,1754737844048,-315.30716032,0.00022473,2]
[378116310,1754737844057,-160.41815299,0.00022473,2]
[378116311,1754737844066,-158.41677855,0.00022473,2]
[378116312,1754737844075,-500.0,0.00022473,2]
[378116313,1754737844086,-500.0,0.00022473,2]
[378116314,1754737844095,-500.0,0.00022473,2]
[378116315,1754737844105,-180.0,0.00022473,2]
[378116316,1754737844114,-500.0,0.00022473,2]
[378116317,1754737844124,-168.0,0.00022477,2]
[378116318,1754737844133,-1000.0,0.00022521,2]
[378116319,1754737844143,-500.0,0.00022521,2]
[378116320,1754737844152,-1000.0,0.00022521,2]
[378116321,1754737844162,-500.0,0.00022521,2]
[378116322,1754737844172,-479.79515532,0.00022521,2]
[378116323,1754737844181,-506.44846835,0.00022521,2]
[378116324,1754737844190,-1000.0,0.00022521,2]
[378116325,1754737844200,-1000.0,0.00022521,2]
[378116326,1754737844209,-1000.0,0.00022521,2]
[378116327,1754737844218,-596.48551058,0.00022521,2]
[378116328,1754737844227,-1000.0,0.00022521,2]
[378116329,1754737844237,-1000.0,0.00022521,2]
[378116330,1754737844246,-503.98869274,0.00022521,2]
[378116331,1754737844255,-500.0,0.00022521,2]
[378116332,1754737844264,-1000.0,0.00022521,2]
[378116333,1754737844274,-1000.92627552,0.00022521,2]
[378116334,1754737844283,-1000.0,0.00022521,2]
[378116335,1754737844293,-500.0,0.00022521,2]
[378116336,1754737844302,-500.0,0.00022521,2]
[378116337,1754737844312,-541.651891,0.00022521,7]
[378116338,1754737844321,-541.651891,0.00022521,7]
[378116339,1754737844331,-151.0,0.00022521,7]
[378116340,1754737844340,-151.0,0.000226,10]
[378116341,1754737844349,-151.0,0.000226,6]
[378116342,1754737844359,-562.08442881,0.00022721,2]
[378116343,1754737844368,-500.0,0.00022721,2]
[378116344,1754737844378,-500.0,0.00022721,2]
[378116345,1754737844387,-1001.64131963,0.00022721,2]
[378116346,1754737844397,-570.00329129,0.00022721,2]
[378116347,1754737844406,-1000.0,0.00022721,2]
[378116348,1754737844416,-500.0,0.00022721,2]
[378116349,1754737844426,-1000.0,0.00022721,2]
[378116350,1754737844435,-1000.0,0.00022721,2]
[378116351,1754737844445,-1000.0,0.00022721,2]
[378116352,1754737844455,-501.21025951,0.00022721,2]
[378116353,1754737844465,-512.52012634,0.00022721,2]
[378116354,1754737844475,-1050.56143078,0.00022721,2]
[378116355,1754737844484,-1000.0,0.00022721,2]
[378116356,1754737844494,-1000.0,0.00022721,2]
[378116357,1754737844503,-1000.0,0.00022721,2]
[378116358,1754737844512,-500.0,0.00022721,2]
[378116359,1754737844522,-501.03349238,0.00022721,2]
[378116360,1754737844531,-500.0,0.00022721,2]
[378116361,1754737844540,-1000.0,0.00022721,2]
[378116362,1754737844549,-151.0,0.00022739,7]
[378116363,1754737844559,-460.0,0.00022739,2]
[378116364,1754737844568,-460.0,0.00022739,2]
[378116365,1754737844577,-460.0,0.00022739,2]
[378116366,1754737844587,-460.0,0.00022739,2]
[378116367,1754737844602,-553.79,0.00022739,2]
[378116368,1754737844611,-460.0,0.00022739,2]
[378116369,1754737844620,-460.0,0.00022739,2]
[378116370,1754737844630,-966.14,0.00022739,2]
[378116371,1754737844641,-469.1210066,0.00022739,2]
[378116372,1754737844650,-151.602963,0.00022739,7]
[378116373,1754737844662,-151.578872,0.00022739,7]
[378116374,1754737844672,-826.92,0.00022739,2]
[378116375,1754737844683,-543.6,0.00022739,2]
[378116376,1754737844692,-575.63,0.00022739,2]
[378116377,1754737844701,-460.0,0.00022739,2]
[378116378,1754737844711,-606.27,0.00022739,2]
[378116379,1754737844720,-460.0,0.00022739,2]
[378116380,1754737844730,-717.66,0.00022739,2]
[378116381,1754737844739,-460.0,0.00022739,2]
[378116382,1754737844748,-577.05,0.00022739,2]
[378116383,1754737844758,-151.0,0.00022739,7]
[378116384,1754737844767,-151.0,0.00022739,7]
[378116385,1754737844777,-460.0,0.00022739,2]
[378116386,1754737844787,-460.0,0.00022739,2]
[378116387,1754737844796,-460.0,0.00022739,2]
[378116388,1754737844805,-465.68674025,0.00022739,2]
[378116389,1754737844815,-460.0,0.00022739,2]
[378116390,1754737844825,-827.44,0.00022739,2]
[378116391,1754737844836,-418.349643,0.00022739,7]
[378116392,1754737844845,-460.0,0.00022739,2]
[378116393,1754737844855,-418.349643,0.00022739,7]
[378116394,1754737844864,-460.0,0.00022739,2]
[378116395,1754737844874,-460.0,0.00022739,2]
[378116396,1754737844891,-151.0,0.00022739,7]
[378116397,1754737844907,-460.0,0.00022739,2]
[378116398,1754737844920,-460.0,0.00022739,2]
[378116399,1754737844932,-460.0,0.00022739,2]
[378116400,1754737844946,-721.3,0.00022739,2]
[378116401,1754737844960,-460.0,0.00022739,2]
[378116402,1754737844975,-1134.05,0.00022739,2]
[378116403,1754737844988,-871.0,0.00022739,2]
[378116404,1754737845003,-1233.03,0.00022739,2]
[378116405,1754737845018,-460.0,0.00022739,2]
[378116406,1754737845031,-151.0,0.00022739,7]
[378116407,1754737845044,-151.0,0.00022739,7]
[378116408,1754737845057,-550.56,0.00022739,2]
[378116409,1754737845072,-460.0,0.00022739,2]
[378116410,1754737845084,-901.87,0.00022739,2]
[378116411,1754737845096,-2923.86,0.00022739,2]
[378116412,1754737845108,-460.0,0.00022739,2]
[378116413,1754737845120,-460.0,0.00022739,2]
[378116414,1754737845134,-678.0,0.00022739,2]
[378116415,1754737845148,-460.0,0.00022739,2]
[378116416,1754737845161,-1048.07,0.00022739,2]
[378116417,1754737845177,-460.0,0.00022739,2]
[378116418,1754737845191,-460.0,0.00022739,2]
[378116419,1754737845203,-1067.59,0.00022739,2]
[378116420,1754737845214,-507.94,0.00022739,2]
[378116421,1754737845224,-714.05,0.00022739,2]
[378116422,1754737845237,-460.0,0.00022739,2]
[378116423,1754737845252,-460.0,0.00022739,2]
[378116424,1754737845264,-517.36,0.00022739,2]
[378116425,1754737845275,-460.0,0.00022739,2]
[378116426,1754737845287,-460.0,0.00022739,2]
[378116427,1754737845300,-3130.02,0.00022739,2]
[378116428,1754737845312,-236.22713052,0.00022739,2]
[378116429,1754737845323,-460.0,0.00022739,2]
[378116430,1754737845336,-507.25,0.00022739,2]
[378116431,1754737845349,-628.17,0.00022739,2]
[378116432,1754737845361,-2497.81,0.00022739,2]
[378116433,1754737845373,-865.590571,0.00022739,7]
[378116434,1754737845385,-460.0,0.00022739,2]
[378116435,1754737845398,-2601.92,0.00022739,2]
[378116436,1754737845410,-865.590571,0.00022739,7]
[378116437,1754737845421,-4866.74,0.00022739,2]
[378116438,1754737845434,-460.0,0.00022739,2]
[378116439,1754737845445,-460.0,0.00022739,2]
[378116440,1754737845457,-709.84,0.00022739,2]
[378116441,1754737845469,-460.0,0.00022739,2]
[378116442,1754737845481,-460.0,0.00022739,2]
[378116443,1754737845493,-868.44,0.00022739,2]
[378116444,1754737845505,-1531.27,0.00022739,2]
[378116445,1754737845517,-460.0,0.00022739,2]
[378116446,1754737845529,-460.0,0.00022739,2]
[378116447,1754737845540,-187.308952,0.00022739,7]
[378116448,1754737845552,-514.62,0.00022739,2]
[378116449,1754737845563,-460.0,0.00022739,2]
[378116450,1754737845575,-460.0,0.00022739,2]
[378116451,1754737845587,-187.308952,0.00022739,7]
[378116452,1754737845606,-1356.23,0.00022739,2]
[378116453,1754737845618,-589.33,0.00022739,2]
[378116454,1754737845630,-460.0,0.00022739,2]
[378116455,1754737845641,-1177.32,0.00022739,2]
[378116456,1754737845653,-617.98,0.00022739,2]
[378116458,1754737845666,-151.0,0.00022739,7]
[378116460,1754737845677,-460.0,0.00022739,2]
[378116462,1754737845689,-460.0,0.00022739,2]
[378116463,1754737845702,-460.0,0.00022739,2]
[378116464,1754737845713,-151.0,0.00022739,7]
[378116465,1754737845725,-748.1,0.00022739,2]
[378116466,1754737845736,-575.50982013,0.00022739,2]
[378116467,1754737845748,-151.0,0.00022739,7]
[378116468,1754737845760,-460.0,0.00022739,2]
[378116469,1754737845773,-611.02,0.00022739,2]
[378116470,1754737845784,-539.32,0.00022739,2]
[378116471,1754737845797,-907.86,0.00022739,2]
[378116472,1754737845809,-460.0,0.00022739,2]
[378116473,1754737845821,-460.0,0.00022739,2]
[378116474,1754737845833,-332.54343963,0.00022739,2]
[378116475,1754737845845,-460.0,0.00022739,2]
[378116476,1754737845857,-460.0,0.00022739,2]
[378116477,1754737845869,-1426.0,0.00022739,2]
[378116478,1754737845881,-1460.77,0.00022739,2]
[378116479,1754737845894,-1833.65,0.00022739,2]
[378116480,1754737845906,-900.14,0.00022739,2]
[378116481,1754737845918,-151.0,0.00022739,7]
[378116482,1754737845931,-460.0,0.00022739,2]
[378116483,1754737845943,-460.78,0.00022739,2]
[378116484,1754737845954,-754.73,0.00022739,2]
[378116485,1754737845966,-460.0,0.00022739,2]
[378116486,1754737845978,-1276.56,0.00022739,2]
[378116487,1754737845990,-1593.67,0.00022739,2]
[378116488,1754737846001,-460.0,0.00022739,2]
[378116489,1754737846013,-263.159035,0.00022739,7]
[378116490,1754737846024,-460.0,0.00022739,2]
[378116491,1754737846037,-263.159035,0.00022739,7]
[378116492,1754737846049,-460.0,0.00022739,2]
[378116493,1754737846062,-553.13,0.00022739,2]
[378116494,1754737846074,-151.0,0.000228,6]
[378116495,1754737846087,-151.0,0.000228,9]
[378116497,1754737846099,-1500.0,0.00022868,2]
[378116498,1754737846112,-1500.0,0.00022868,2]